Cogmind - Beta 13 @@@ ROGUE MODE // 2024.07.06 @ 13:41:12 Player: Cinder Result: Destroyed by as-22149 with Assembled Blade Performance ------------- Evolutions (1) 500 Regions Visited (4) 800 Robots Destroyed (17) 85 Value Destroyed (448) 448 Prototype IDs (0) 0 Alien Tech Used (0) 0 Bonus (200) 200 TOTAL SCORE: 2033 Bonus ------- Pacifist 200 Cogmind --------- Core Integrity 0/400 Matter 210/300 Energy 100/100 System Corruption 0% Temperature Cool (33) Movement Walking (120) Location -9/Mines Parts ------- > --- POWER (1) -------- (None) > --- PROPULSION (4) --- Aluminum Leg Aluminum Leg > --- UTILITY (2) ------ Medium Storage Unit Core Shielding > --- WEAPON (2) ------- Assault Rifle > --- INVENTORY (10) --- Light Nuclear Core Flight Unit Flight Unit Flight Unit Flight Unit Core Shielding Particle Gun Particle Gun Light Assault Rifle Peak State ------------ > --- POWER ------------ Light Ion Engine > --- PROPULSION ------- Aluminum Leg Flight Unit Flight Unit Flight Unit > --- UTILITY ---------- Core Shielding Core Shielding > --- WEAPON ----------- Particle Gun Autogun > --- INVENTORY -------- Utility Shielding Assault Rifle [Rating: 11] Favorites ----------- Power Light Ion Engine Engine Light Ion Engine Propulsion Aluminum Leg Treads Light Treads Leg Aluminum Leg Flight Unit Flight Unit Utility Small Storage Unit Device Structural Scanner Storage Small Storage Unit Protection Core Shielding Weapon Assault Rifle Energy Gun EM Pulse Gun Ballistic Gun Assault Rifle Impact Weapon Hammer Build | -11 -10 -10 -9 -9 ------- Run | Yrd Mat Min Mat Min Slots Evolved 2 | . . . 2 . Power . | . . . . . Propulsion 2 | . . . 2 . Utility . | . . . . . Weapon . | . . . . . Parts Attached 33 | 6 1 . 18 8 Power 5 | 1 . . 3 1 Engine 5 | 1 . . 3 1 Core . | . . . . . Reactor . | . . . . . Propulsion 16 | 2 . . 9 5 Treads 3 | 2 . . 1 . Leg 8 | . . . 4 4 Wheel . | . . . . . Hover . | . . . . . Flight 5 | . . . 4 1 Utility 6 | 1 1 . 3 1 Device 1 | . 1 . . . Storage 2 | 1 . . 1 . Processor . | . . . . . Hackware . | . . . . . Protection 3 | . . . 2 1 Artifact . | . . . . . Weapon 6 | 2 . . 3 1 Energy Gun 2 | 1 . . 1 . Energy Cannon . | . . . . . Ballistic Gun 3 | 1 . . 1 1 Ballistic Cannon . | . . . . . Launcher . | . . . . . Special Weapon . | . . . . . Impact Weapon 1 | . . . 1 . Slashing Weapon . | . . . . . Piercing Weapon . | . . . . . Special Melee Weapon . | . . . . . Unidentified Prototypes . | . . . . . Parts Lost 17 | . . . 13 4 Power 5 | . . . 3 2 Propulsion 6 | . . . 5 1 Utility 2 | . . . 2 . Weapon 4 | . . . 3 1 Highest Loss Streak 7 | . . . 7 3 To Critical Strikes . | . . . . . Average Slot Usage (%) 77 | . 98 100 67 89 Engine 8 | . 14 14 7 10 Treads 8 | . 28 28 5 . Leg 13 | . . . 13 24 Flight 3 | . . . 3 11 Device 5 | . 12 14 5 . Storage 8 | . 14 14 6 11 Protection 6 | . . . 6 11 Energy Gun 7 | . 14 14 7 . Ballistic Gun 8 | . 14 14 3 21 Impact Weapon 5 | . . . 8 . Naked Turns . | . . . . . Heaviest Build 20 | 12 13 13 20 19 Greatest Support 60 | 40 40 40 60 30 Greatest Overweight (x) 1 | . . . 1 1 Average Overweight (x) . | . . . . . Largest Inventory Capacity 10 | 8 8 8 10 10 Average Capacity 7 | 6 8 8 6 10 Most Carried 9 | 5 7 8 8 9 Average Carried 6 | 3 4 7 6 8 Final Capacity 10 | 8 8 8 10 10 Final Carried 9 | 4 7 8 7 9 Class Distribution -------------------- 76% | Mutant 23% | Scavenger-Mutant Dominant Class ---------------- Mutant | -10/Materials Mutant | -10/Mines Mutant | -9/Materials Scavenger-Mutant | -9/Mines Resources | -11 -10 -10 -9 -9 ----------- Run | Yrd Mat Min Mat Min Matter Collected 480 | 218 . . 165 97 Remotely . | . . . . . Salvage Created 524 | . . . 410 114 Parts 22 | . . . 18 4 Haulers Intercepted . | . . . . . Recyclers Shooed 1 | . . . 1 . Parts Field Recycled . | . . . . . Retrieved Matter . | . . . . . Parts Self-Destructed . | . . . . . Prevented . | . . . . . Kills | -11 -10 -10 -9 -9 ------- Run | Yrd Mat Min Mat Min Combat Hostiles Destroyed 16 | . . . 13 3 Melee 7 | . . . 7 . Guns 5 | . . . 2 3 Classes Destroyed 6 | . . . 5 1 Operator 1 | . . . 1 . Watcher 1 | . . . 1 . Swarmer 6 | . . . 6 . Grunt 8 | . . . 6 2 Sentry 1 | . . . 1 . Assembled 1 | . . . . 1 Best Kill Streak 5 | . . . 5 2 Combat Bots Only 3 | . . . 3 2 Max Kills in Single Turn 1 | . . . 1 1 Gunslinging . | . . . . . Exploded . | . . . . . Melee 1 | . . . 1 . Uniques/NPCs Destroyed . | . . . . . Combat | -11 -10 -10 -9 -9 -------- Run | Yrd Mat Min Mat Min Hostile Shots Fired 212 | . . 17 161 34 Missed 46 | . . 6 34 6 Damage Taken 2098 | . . 149 1494 455 Core 445 | . . 32 342 71 Absorbed by Shields . | . . . . . Redirected to Shielding 24 | . . . 14 10 Regen/Repaired (Parts) 75 | . . . 75 . Core Remaining (%) 93 | 100 . 87 . . Volleys Fired 23 | . . . 11 12 Largest 2 | . . . 2 2 Hottest 88 | . . . 88 43 Shots Fired 43 | . . . 19 24 Gun 43 | . . . 19 24 Cannon . | . . . . . Launcher . | . . . . . Special . | . . . . . Kinetic 33 | . . . 9 24 Thermal 8 | . . . 8 . Explosive . | . . . . . Electromagnetic 2 | . . . 2 . Robot Hit Streak 6 | . . . 4 6 Robot Miss Streak 4 | . . . 3 4 Penetration Max . | . . . . . Secondary Targets . | . . . . . Shots Hit Robots 58 | . . . 45 13 Core Hits 17 | . . . 11 6 Critical Kills 2 | . . . 2 . Critical Parts Destroyed 6 | . . . 6 . Critical Strikes 10 | . . . 10 . Corrupt 1 | . . . 1 . Smash 9 | . . . 9 . Melee Attacks 47 | . . . 47 . Impact 47 | . . . 47 . Slashing . | . . . . . Piercing . | . . . . . Sneak Attacks 2 | . . . 2 . Combat Hostiles . | . . . . . Follow-up Attacks . | . . . . . Damage Inflicted 1276 | . . . 1082 194 Guns 356 | . . . 164 192 Cannons . | . . . . . Explosions . | . . . . . Melee 918 | . . . 918 . Ramming 2 | . . . . 2 Kinetic 282 | . . . 90 192 Thermal 47 | . . . 47 . Explosive . | . . . . . Electromagnetic 27 | . . . 27 . Impact 918 | . . . 918 . Slashing . | . . . . . Piercing . | . . . . . Highest Corruption . | . . . . . Average Corruption . | . . . . . Corruption Purged . | . . . . . Corruption Blocked . | . . . . . Overload Shots . | . . . . . Overflow Damage 274 | . . . 274 . Projectiles . | . . . . . Explosions . | . . . . . Melee 274 | . . . 274 . Knockbacks 2 | . . . 2 . Impact 2 | . . . 2 . Kinetic . | . . . . . Secondary . | . . . . . Self-Inflicted Damage . | . . . . . Shots . | . . . . . Rammed . | . . . . . Targets Rammed 2 | . . . . 2 Kicked 2 | . . . . 2 Crushed . | . . . . . Highest Temperature 76 | . . . 76 61 Average Temperature 26 | . . . 30 19 Received Heat Transfer 1044 | . . 84 705 255 Siege Activations . | . . . . . Robots Corrupted 1 | . . . 1 . Combat Hostiles 1 | . . . 1 . Parts Fried 10 | . . . 10 . Impact Corruptions 15 | . . . 15 . Robots Melted . | . . . . . Combat Hostiles . | . . . . . Parts Melted . | . . . . . Heat Transferred 111 | . . . 111 . Parts Sabotaged . | . . . . . Parts Stolen . | . . . . . Parts Stripped . | . . . . . Power Chain Reactions . | . . . . . Alert | -11 -10 -10 -9 -9 ------- Run | Yrd Mat Min Mat Min Peak Influence 207 | . 15 5 207 77 Initial 37 | . . 5 1 37 Average 61 | . 4 5 84 72 Maximum Alert Level 1 | . . . 1 . Low Security (%) 94 | 100 100 100 90 100 Level 1 5 | . . . 9 . Level 2 . | . . . . . Level 3 . | . . . . . Level 4 . | . . . . . Level 5 . | . . . . . High Security . | . . . . . Max Security . | . . . . . Squads Dispatched 2 | . . . 2 . Investigation . | . . . . . Extermination . | . . . . . Reinforcement 2 | . . . 2 . Assault . | . . . . . Garrison . | . . . . . Intercept . | . . . . . Searches Triggered . | . . . . . Construction Impeded . | . . . . . Haulers Reinforced . | . . . . . Active Scanning Responses . | . . . . . Cargo Convoy Interrupts . | . . . . . Stealth | -11 -10 -10 -9 -9 --------- Run | Yrd Mat Min Mat Min Distress Signals 5 | . . . 5 . Communications Jammed . | . . . . . Distress Signals . | . . . . . Times Spotted 41 | . 3 2 25 11 Peak Tracking Total 8 | . 3 2 7 8 Tactical Retreats 1 | . . . 1 . Traps | -11 -10 -10 -9 -9 ------- Run | Yrd Mat Min Mat Min Traps Triggered . | . . . . . Indirectly . | . . . . . Trap Hack Attempts . | . . . . . Triggered . | . . . . . Disarmed . | . . . . . Reprogrammed . | . . . . . Reused . | . . . . . Traps Extracted . | . . . . . Installed . | . . . . . Triggered . | . . . . . Machines | -11 -10 -10 -9 -9 ---------- Run | Yrd Mat Min Mat Min Machines Disabled . | . . . . . Max in Single Turn . | . . . . . Machines Repaired . | . . . . . Machines Dismantled . | . . . . . Machines Sabotaged . | . . . . . Overloaded Fab Kills . | . . . . . Hacking | -11 -10 -10 -9 -9 --------- Run | Yrd Mat Min Mat Min Machines Accessed 3 | . . . 3 . Terminals 2 | . . . 2 . Fabricators . | . . . . . Repair Stations 1 | . . . 1 . Recycling Units . | . . . . . Scanalyzers . | . . . . . Garrison Access . | . . . . . Total Hacks 11 | . . . 11 . Successful 5 | . . . 5 . Failed 6 | . . . 6 . Catastrophic . | . . . . . Database Lockouts . | . . . . . Manual . | . . . . . Terminals 9 | . . . 9 . Fabricators . | . . . . . Repair Stations 2 | . . . 2 . Recycling Units . | . . . . . Scanalyzers . | . . . . . Garrison Access . | . . . . . Terminal Hacks 3 | . . . 3 . Emergency Access Points 1 | . . . 1 . Dispatch Records 1 | . . . 1 . Zone Layout 1 | . . . 1 . Fabricator Hacks . | . . . . . Repair Station Hacks 2 | . . . 2 . Scan Component 1 | . . . 1 . Repair 1 | . . . 1 . Recycling Unit Hacks . | . . . . . Scanalyzer . | . . . . . Garrison Access Hacks . | . . . . . Unauthorized Hacks . | . . . . . Terminals . | . . . . . Fabricators . | . . . . . Repair Stations . | . . . . . Recycling Units . | . . . . . Scanalyzers . | . . . . . Garrison Access . | . . . . . Data Cores Recovered . | . . . . . Used . | . . . . . Hacking Detections 1 | . . . 1 . Full Trace Events . | . . . . . Feedback Events . | . . . . . Feedback Blocked . | . . . . . Robot Schematics Acquired . | . . . . . Robots Built . | . . . . . Authchips . | . . . . . Time . | . . . . . Total Robot Build Rating . | . . . . . Part Schematics Acquired . | . . . . . Parts Built . | . . . . . Authchips . | . . . . . Time . | . . . . . Total Part Build Rating . | . . . . . Parts Repaired 1 | . . . 1 . Time 26 | . . . 26 . Parts Recycled . | . . . . . Recycled Matter . | . . . . . Retrieved Matter . | . . . . . Retrieved Components . | . . . . . Parts Scanalyzed . | . . . . . Part Schematics Acquired . | . . . . . Parts Damaged . | . . . . . Bothacking | -11 -10 -10 -9 -9 ------------ Run | Yrd Mat Min Mat Min Used RIF Installer . | . . . . . Robots Hacked . | . . . . . Non-combat . | . . . . . Combat . | . . . . . Robot Hacks Applied . | . . . . . Relay Couplers Released . | . . . . . Fabnet Peak Effective % . | . . . . . Robots Rewired . | . . . . . Allies Hacked . | . . . . . Hacks Repelled . | . . . . . Allies | -11 -10 -10 -9 -9 -------- Run | Yrd Mat Min Mat Min Total Allies . | . . . . . Largest Group . | . . . . . Highest-Rated Group . | . . . . . Highest-Rated Ally . | . . . . . Total Orders . | . . . . . Ally Attacks . | . . . . . Total Damage . | . . . . . Kills . | . . . . . Allies Corrupted . | . . . . . Allies Melted . | . . . . . Intel | -11 -10 -10 -9 -9 ------- Run | Yrd Mat Min Mat Min Robot Analysis Total . | . . . . . Derelict Logs Recovered . | . . . . . Drone Launches . | . . . . . Drone Recoveries . | . . . . . Exploration | -11 -10 -10 -9 -9 ------------- Run | Yrd Mat Min Mat Min Turns Passed 957 | 84 103 56 565 149 Spaces Moved 529 | 49 62 35 307 76 Core 10 | 10 . . . . Treads 181 | 39 62 35 45 . Legs 241 | . . . 172 69 Wheels . | . . . . . Hover . | . . . . . Flight 97 | . . . 90 7 Fastest Speed 31 | 50 160 160 31 111 Average Speed 119 | 137 160 160 103 119 Slowest Speed 190 | 160 160 160 190 120 Overloaded Moves . | . . . . . Propulsion Burnouts . | . . . . . Robots Hopped . | . . . . . Cave-ins Triggered . | . . . . . Exploration Rate (%) 20 | 4 21 14 31 30 Regions Visited 4 Branch Regions 2 Pre-discovered Areas . | . . . . . Known Exits Taken . | . . . . . Unknown Exits Taken 4 | 1 1 1 1 . Scrap Searched . | . . . . . Spaces Dug . | . . . . . Terrain Destroyed . | . . . . . Melee . | . . . . . Projectile . | . . . . . AOE . | . . . . . Terrain Rammed . | . . . . . Walls Destroyed . | . . . . . Machines Disabled . | . . . . . Actions | -11 -10 -10 -9 -9 --------- Run | Yrd Mat Min Mat Min Total 733 | 66 66 35 456 110 Wait 61 | 2 . . 52 7 Move 525 | 48 61 34 306 76 Hop . | . . . . . Pick Up 34 | 10 4 1 15 4 Fast Attach 3 | . . . 3 . Attach 25 | 6 1 . 15 3 Detach 5 | . . . 4 1 Swap 5 | . . . . 5 Drop 3 | . . . 3 . Fire 23 | . . . 11 12 Melee 47 | . . . 47 . Ram . | . . . . . Kick 2 | . . . . 2 Crush . | . . . . . Escape Stasis . | . . . . . Rewire . | . . . . . Trap . | . . . . . Miscellaneous . | . . . . . Route ------- -11/Scrapyard -10/Materials -10/Mines -9/Materials -9/Mines History --------- Turn | Location | Event 8 | -11/Scrapyard | Discovered new exit (range 15) 85 | -11/Scrapyard | Entered Materials 167 | -10/Materials | Discovered new exit (range 6) 188 | -10/Materials | Entered Mines 192 | -10/Mines | Met a Derelict bent on vengeance 223 | -10/Mines | Discovered new exit (range 14) 244 | -10/Mines | Entered Materials 244 | -9/Materials | Evolved 2 slots: Propulsion x2 345 | -9/Materials | Build established: Mutant 382 | -9/Materials | Lost 7 parts (2p3n2w) 385 | -9/Materials | Core integrity fell below 50% 619 | -9/Materials | Repaired Aluminum Leg 682 | -9/Materials | Discovered new exit (range 18) 740 | -9/Materials | Core integrity fell below 20% 809 | -9/Materials | Entered Mines 931 | -9/Mines | Assembled infested the area 958 | -9/Mines | Destroyed by as-22149 with Assembled Blade Last Messages --------------- 00825_ G-34 Mercenary destroyed. 00833_ Acquired Aluminum Leg. 00836_ Acquired Lgt. Nuclear Core. 00837_ Acquired 55 matter. 00839_ Acquired Aluminum Leg. 00841_ Acquired Particle Gun. 00843_ Acquired 42 matter. 00931_ ALERT: Infestation in the mines, dispatching Demolisher response squad. 00936_ T-07 Excavator destroyed. 00936_ Kicked T-07 Excavator out of the way. 00941_ as-22149 sneak attacks. 00948_ Knocked back. 00949_ as-22149 sneak attacks. 00949_ R-06 Scavenger destroyed. 00952_ as-31814 destroyed. 00955_ Lgt. Ion Engine destroyed. 00955_ Autogun destroyed. 00958_ Aluminum Leg destroyed. Map ----- +----------------------------------------------------+ | ?????????????????????# #????????## #????? | | ?????????????????????# ####????## #?????? | | ?????????????????????# #???## #??????? | | ?????????????????????##### #??## ##?????? | | ?????????????????????????# #??# ##????? | | ?????????????????????????# #??# ##???? | | ?????????????????????????# #?## #???? | | ?????????????????????????# #?# #???? | | ?????????????????????????# ### """ #????? | | ?????????????????????????# """ #????? | | ?????????????????????????###### """ ##???? | | ??????????????????????????????## ###?? | | ???????????????????????????????## ##? | | ???????????????????????#####????## #? | | ???????????????????????? ##????## #? | | ????????????????????????# #?????## #? | | ????????????????????????# #??????# #? | | ????????????????????????# #?????## ##? | | ????????????????????????# #?????# ## ##?? | | ?????????????????????????# ####??## ##?? ##??? | | ????????????????????????## #???# #????#???? | | ???????????????????????##%= #???# #????????? | | ????????????????######## =a ## #???# #### #???? | | ????????????????#|% aaa ### ##### #???? | | ????????????????# #####aaaa#?# #####????? | | ??????????????????????# @ #?###### ###????????? | | ??????????????????????## ##??????# #??????????? | | ???????????????????????####???????# #??????????? | | ??????????????????????????????????# #??????????? | | ??????????????????????????????????# #??????????? | | ?????????????????????????????????## #??????????? | | ????????????????????????????????## ##?????????? | | ????????????????????????????????# ##????????? | | ????????????????????????????????# #????????? | | ???????????????????????????????# #???????? | | ??????????????????????????????# #??????? | | ??????????????????????????????# #?????? | | ??????????????????????????????# #????? | | ??????????????????????????????## #????? | | ???????????????????????????????## ##????? | | ????????????????????????????????# ##?????? | | ????????????????????????????????# #??????? | | ????????????????????????????????## #??????? | | ?????????????????????????????????#### ##??????? | | ?????????????????????????????????????###???????? | | ???????????????????????????????????????????????? | | ???????????????????????????????????????????????? | | ???????????????????????????????????????????????? | | ???????????????????????????????????????????????? | | ???????????????????????????????????????????????? | +----------------------------------------------------+ Best States ------------- Heat Dissipation 28 Energy Generation 10 Energy Capacity 125 Matter Stores 300 Matter Capacity 300 Sight Range 16 Terrain Scan Density 10 Core Shielding 20 Evasion (%) 63 Recoil Reduction 3 Item Schematics ----------------- None Robot Schematics ------------------ None Fabricated ------------ Nothing Alien Tech Used ----------------- None Achievements -------------- None Challenges ------------ None Game ------ Seed GreatExoskeletonBarrier Manual? 0 Play Time 00:14:12 Cumulative 21.6 hours Start 2024.07.06 @ 13:15:59 End 2024.07.06 @ 13:41:12 Sessions 1 Manual Loads 0 Difficulty Rogue Special Mode None Game No. 44 Rogue 44 Adventurer 0 Explorer 0 Win Type - Total 0 Types 0/0/0/0/0/0/0/0/0 Lore% 19 Gallery% 25 Achievement% 18 Wizard Run 0 Options --------- Layout 1 ASCII 0 Keyboard 0 Movement Mouse Keybinds 0 Fullscreen 1 Font 24/Smallcaps Map View 50x35 Zoom Use 0% Tactical HUD 1 Map Filters NONE Filters NONE Steam 1 RUN: 20ee204e-f095-46f0-88cb-f537149cf355